[Event "Tsaghkadzor Open 2024"]
[Site "Tsaghkadzor"]
[Date "2024.10.04"]
[Round "7.6"]
[White "Gong, Sunle"]
[Black "Gharibyan, Mamikon"]
[Result "0-1"]
[ECO "D38"]
[WhiteElo "2226"]
[BlackElo "2472"]
[Annotator "TA"]
[PlyCount "116"]
[EventDate "2024.09.13"]
[EventType "swiss"]
[EventCountry "ARM"]
[SourceTitle "playchess.com"]
[Source "ChessBase"]
[SourceQuality "1"]
[TimeControl "40/5400+30:1800+30"]

{[%evp 14,116,35,26,31,20,32,14,17,19,18,-27,-16,-23,1,0,0,-16,-10,-64,-6,-18,-8,-35,8,18,25,0,0,-25,-23,-46,-17,-25,-31,-28,0,-51,-36,-41,-25,-50,-36,-95,-94,-93,-102,-84,-83,-93,-68,-108,-103,-88,-103,-147,-60,-61,-56,-484,-479,-517,-493,-502,-490,-494,-488,-485,-491,-559,-569,-533,-533,-702,-668,-716,-722,-856,-856,-951,-872,-961,-854,-947,-965,-938,-885,-1025,-1012,-5026,-4128,-29981,-29981,-29981,-29982,-29982,-29983,-29985,-29986,-29987,-29988,-29988,-29989,-29991,-29992]} 1. d4 {[%emt 0:00:06]} d5 {[%emt 0:00:13]} 2. c4 {[%emt 0:00:07]} e6 {[%emt 0:00:04]} 3. Nc3 {[%emt 0:00:04]} Bb4 {[%emt 0:00:35]} 4. Nf3 {[%emt 0:00:25]} Nf6 {[%emt 0:06:32]} 5. Bg5 {[%emt 0:00:20]} Nbd7 {[%emt 0:01:27]} 6. e3 {[%emt 0:00:10]} h6 {[%emt 0:01:22] D38: Queen's Gambit Declined: Ragozin Defence (4 Nf3 Bb4).} 7. Bxf6 {[%emt 0:02:43]} Bxc3+ {[%emt 0:06:17]} 8. bxc3 {[%emt 0:00:07]} Nxf6 {[%emt 0:01:42]} 9. Qa4+ {[%emt 0:00:39]} Qd7 $146 {[%emt 0:13:09]} ({Predecessor:} 9... Bd7 10. Qb3 c5 11. Qxb7 Qa5 12. Qxa8+ Ke7 13. Qxh8 Qxc3+ 14. Nd2 Qxa1+ 15. Ke2 Qxa2 16. Ke1 Ne4 17. Nxe4 Qb1+ 18. Ke2 dxe4 19. dxc5 Qd3+ 20. Ke1 Qc3+ {0-1 Migliorini,R (1868)-Moreira,J (1831) FICGS class C 000185 email 2013 (1)}) 10. Qc2 {[%emt 0:05:27]} O-O {[%emt 0:08:12]} 11. Ne5 {[%emt 0:00:30]} Qe7 {[%emt 0:01:15]} 12. h4 {[%emt 0:01:52]} Nd7 {[%emt 0:03:43]} 13. Nf3 {[%emt 0:01:27]} c6 {[%emt 0:04:53]} 14. g4 {[%emt 0:09:57]} e5 {[%emt 0:02:57]} 15. Be2 {[%emt 0:01:39]} Re8 {[%emt 0:06:20]} 16. Nd2 {[%emt 0:03:15]} (16. cxd5 $11 cxd5 17. Qb1) 16... e4 {[%emt 0:10:55]} ({Black should play} 16... exd4 $15 17. cxd4 c5) 17. O-O-O {[%emt 0:02:08]} g6 {[%emt 0:03:11]} 18. Qb3 {[%emt 0:06:16]} a5 {[%emt 0:03:46]} 19. cxd5 {[%emt 0:04:18]} cxd5 {[%emt 0:02:24]} 20. a4 {[%emt 0:03:17]} Nf6 {[%emt 0:07:22]} 21. Rhg1 {[%emt 0:05:17]} Be6 {[%emt 0:00:31]} 22. Kb2 {[%emt 0:02:07]} Kg7 {[%emt 0:00:37]} 23. g5 {[%emt 0:02:46]} hxg5 {[%emt 0:00:17]} 24. hxg5 {[%emt 0:00:08]} Nh7 {[%emt 0:00:41]} 25. c4 {[%emt 0:00:29]} ({Better is} 25. Bb5 $11) 25... dxc4 {[%emt 0:03:24]} (25... Nxg5 $6 26. cxd5 Bd7 27. Nc4 $14 (27. Qxb7 $2 Reb8 $19)) 26. Bxc4 {[%emt 0:00:07]} Bxc4 {[%emt 0:01:25]} 27. Nxc4 {[%emt 0:00:16]} Nxg5 {[%emt 0:00:25]} 28. Qc3 {[%emt 0:23:58]} (28. Rc1 $15) 28... Qf6 $17 {[%emt 0:00:34]} 29. d5 {[%emt 0:00:19]} Qxc3+ {[%emt 0:02:41]} 30. Kxc3 {[%emt 0:00:02]} Nf3 {[%emt 0:00:05]} 31. Rh1 {[%emt 0:00:32]} Rac8 {[%emt 0:00:38]} 32. d6 {[%emt 0:05:11]} Rc5 {[%emt 0:04:32]} 33. d7 {[%emt 0:11:13]} Rd8 {[%emt 0:00:05]} 34. Kb3 {[%emt 0:03:02]} Rc7 {[%emt 0:01:48]} (34... b5 $17 35. Nd6 bxa4+ (35... Rxd7 36. Ne8+ Kf8 37. Rxd7 $11) 36. Kxa4 Ne5 (36... Rxd7 37. Ne8+ Kf8 38. Rxd7 $11)) 35. Nb6 $15 {[%emt 0:00:18]} Ne5 {[%emt 0:00:34]} 36. Rh4 $2 {[%emt 0:02:11][%mdl 8192]} ({Only move:} 36. Rd6 $1 $15) 36... Rc6 $19 {[%emt 0:00:39]} (36... Nxd7 37. Rxd7 Rcxd7 (37... Rdxd7 38. Nxd7 Rxd7 39. Rxe4 $17) 38. Nxd7 Rxd7 39. Rxe4 $19) 37. Nd5 {[%emt 0:00:48]} Nxd7 {[%emt 0:00:25]} ({Weaker is} 37... Rxd7 38. Rxe4 Nf3 39. Re7 Rxe7 40. Nxe7 Rb6+ 41. Ka3 $17) 38. Nc3 {[%emt 0:04:56]} Nc5+ {[%emt 0:00:09]} 39. Ka3 {[%emt 0:00:07]} Rxd1 {[%emt 0:00:31]} 40. Nxd1 {[%emt 0:00:00]} Rd6 {[%emt 0:00:00]} ({Don't play} 40... Rb6 41. Nb2) 41. Nc3 {[%emt 0:15:13]} Rd3 {[%emt 0:17:43]} 42. Kb2 {[%emt 0:00:04]} Rd2+ {[%emt 0:00:42]} 43. Ka3 {[%emt 0:00:04]} f5 {[%emt 0:00:33]} 44. Rh1 {[%emt 0:00:07]} Rxf2 {[%emt 0:01:02]} 45. Nd5 {[%emt 0:00:07]} Rd2 {[%emt 0:00:32]} 46. Nf4 {[%emt 0:00:04]} g5 {[%emt 0:00:55]} 47. Rg1 {[%emt 0:01:30]} Kf6 {[%emt 0:00:15]} 48. Nh5+ {[%emt 0:00:10]} Ke5 {[%emt 0:01:14]} 49. Rxg5 {[%emt 0:00:18]} Rd3+ {[%emt 0:00:51]} 50. Ka2 {[%emt 0:00:04]} Rxe3 {[%emt 0:00:07]} 51. Rg7 {[%emt 0:00:05]} Rh3 {[%emt 0:00:47]} 52. Ng3 {[%emt 0:00:07]} Ne6 {[%emt 0:00:56]} 53. Rg8 {[%emt 0:00:05]} f4 {[%emt 0:00:19]} 54. Nf1 {[%emt 0:00:04]} Rh1 {[%emt 0:00:26]} 55. Ng3 {[%emt 0:00:06]} Rg1 {[%emt 0:00:41]} 56. Rb8 {[%emt 0:00:05]} Rxg3 {[%emt 0:00:42]} 57. Rxb7 {[%emt 0:00:03]} f3 {[%emt 0:00:07]} 58. Rf7 {[%emt 0:00:07]} e3 {[%emt 0:00:07]} 0-1

[Event "Tsaghkadzor Open 2024"]
[Site "Tsaghkadzor"]
[Date "2024.10.04"]
[Round "7.7"]
[White "Sahakyan, Aleks"]
[Black "Davtyan, Artur"]
[Result "1/2-1/2"]
[ECO "A13"]
[WhiteElo "2267"]
[BlackElo "2467"]
[Annotator "TA"]
[PlyCount "59"]
[EventDate "2024.09.13"]
[EventType "swiss"]
[EventCountry "ARM"]
[SourceTitle "playchess.com"]
[Source "ChessBase"]
[SourceQuality "1"]
[TimeControl "40/5400+30:1800+30"]

{[%evp 12,59,56,59,46,59,60,51,62,49,44,49,43,29,44,22,25,23,35,27,31,2,47,7,0,-6,-16,0,-14,-12,-4,-6,-10,-13,-11,-5,0,0,0,0,0,0,0,0,0,0,0,0,0,0]} 1. c4 {[%emt 0:00:02]} e6 {[%emt 0:14:07]} 2. g3 {[%emt 0:00:06]} d5 {[%emt 0:00:06]} 3. Bg2 {[%emt 0:00:07]} dxc4 {[%emt 0:00:22]} 4. Qa4+ {[%emt 0:00:06]} Bd7 {[%emt 0:07:59]} 5. Qxc4 {[%emt 0:00:06]} Bc6 {[%emt 0:00:03]} 6. Nf3 {[%emt 0:00:05]} Nf6 {[%emt 0:00:23]} 7. O-O {[%emt 0:00:07]} Be7 {[%emt 0:01:21]} 8. Qc2 {[%emt 0:00:04]} O-O {[%emt 0:01:56]} 9. Nc3 {[%emt 0:00:04]} Bxf3 {[%emt 0:23:07] White is slightly better.} 10. Bxf3 {[%emt 0:00:41]} c6 {[%emt 0:00:01]} 11. Rd1 {[%emt 0:01:28]} e5 {[%emt 0:00:25]} 12. Qf5 {[%emt 0:09:40]} Qd6 {[%emt 0:24:18] [#]} 13. b4 $1 {[%emt 0:01:48]} a6 {[%emt 0:03:03]} (13... g6 14. Qc2) 14. Rb1 {[%emt 0:03:54]} Nbd7 {[%emt 0:00:31] Repels d4} 15. d3 {[%emt 0:04:25][%cal Bd2d3,Bd3d4][%mdl 32]} Rfe8 {[%emt 0:06:31]} 16. Be3 {[%emt 0:03:18]} Nd5 {[%emt 0:04:09]} 17. Bxd5 {[%emt 0:06:20]} cxd5 {[%emt 0:00:02] The position is equal.} 18. d4 {[%emt 0:00:05]} (18. Ne4 $5 Qc7 (18... dxe4 19. dxe4 Qc6 20. Qxd7 $16) 19. Rbc1 $14) 18... Qe6 {[%emt 0:00:26]} 19. Qxe6 {[%emt 0:07:35]} fxe6 {[%emt 0:00:04]} 20. Na4 {[%emt 0:00:38]} b5 {[%emt 0:10:25]} 21. Nc5 {[%emt 0:00:11]} exd4 {[%emt 0:00:05]} 22. Bxd4 {[%emt 0:00:12]} Nxc5 {[%emt 0:00:38]} 23. bxc5 {[%emt 0:01:01]} Rec8 {[%emt 0:00:01]} 24. Rdc1 {[%emt 0:01:55]} Rc6 {[%emt 0:00:03]} 25. a4 {[%emt 0:59:02]} bxa4 {[%emt 0:00:14]} 26. Ra1 {[%emt 0:00:00]} Rac8 {[%emt 0:02:35][%cal Re7c5]} 27. Rxa4 {[%emt 0:00:00]} Bxc5 {[%emt 0:00:09]} 28. Rxc5 {[%emt 0:00:00]} Rxc5 {[%emt 0:00:03]} 29. Bxc5 {[%emt 0:00:00]} Rxc5 {[%emt 0:00:02]} 30. Rxa6 {[%emt 0:00:00] Weighted Error Value: White=0.08 (flawless) /Black=0.05 (flawless) .  Inaccurate:     	White=2     	Black=1      OK:         	White=8     	Black=7      Best:        	White=1     	Black=1} 1/2-1/2

[Event "Tsaghkadzor Open 2024"]
[Site "Tsaghkadzor"]
[Date "2024.10.04"]
[Round "7.8"]
[White "Gasparyan, Erik R."]
[Black "Goganov, Aleksey"]
[Result "1/2-1/2"]
[ECO "E51"]
[WhiteElo "2350"]
[BlackElo "2463"]
[Annotator "TA"]
[PlyCount "146"]
[EventDate "2024.09.13"]
[EventType "swiss"]
[EventCountry "ARM"]
[SourceTitle "playchess.com"]
[Source "ChessBase"]
[SourceQuality "1"]
[TimeControl "40/5400+30:1800+30"]

{[%evp 13,146,0,0,0,0,0,0,0,0,0,0,0,0,-34,-34,-45,-36,-27,-26,-22,-21,-35,-18,-47,-60,-56,-38,-37,-19,-20,-24,-27,-21,-94,-97,-87,-33,-94,-59,-87,-62,-58,-59,-85,-34,-62,-60,-174,-57,-53,-24,-74,-66,-138,-137,-88,-98,-95,-95,-278,-272,-246,-252,-286,-246,-260,-255,-245,-243,-466,-462,-445,-458,-465,-443,-414,-404,-617,-550,-535,-533,-565,-231,-184,-225,-223,-214,-221,-52,-52,-52,-52,-52,-52,-52,-52,-52,-52,-52,-52,-52,-52,0,-52,-52,-52,-52,-52,-52,-52,0,-52,-52,-52,0,0,0,0,0,0,0,0,0,0,0,0,0,0,0,0,0,0,0,-144,-144]} 1. d4 {[%emt 0:00:04]} Nf6 {[%emt 0:00:10]} 2. c4 {[%emt 0:00:08]} e6 {[%emt 0:00:06]} 3. Nf3 {[%emt 0:00:27]} d5 {[%emt 0:00:21]} 4. Nc3 {[%emt 0:00:25]} Bb4 {[%emt 0:00:20]} 5. e3 {[%emt 0:00:34]} O-O {[%emt 0:00:16]} 6. Bd2 {[%emt 0:00:03]} b6 {[%emt 0:00:15]} 7. cxd5 {[%emt 0:00:04]} exd5 {[%emt 0:00:04]} 8. Rc1 {[%emt 0:00:06]} Re8 {[%emt 0:02:35]} 9. Bd3 {[%emt 0:03:35]} Bf8 {[%emt 0:01:39]} 10. Ne5 {[%emt 0:06:13] The position is equal.} Bb7 {[%emt 0:04:05]} 11. O-O {[%emt 0:00:17]} c5 {[%emt 0:00:04]} 12. f4 {[%emt 0:26:17]} Nc6 {[%emt 0:00:06]} 13. Qf3 {[%emt 0:10:44]} cxd4 {[%emt 0:04:08]} 14. Nxc6 {[%emt 0:00:04]} Bxc6 {[%emt 0:00:10]} 15. exd4 {[%emt 0:00:04]} Ne4 {[%emt 0:02:19]} 16. Be3 {[%emt 0:00:23]} Qd7 {[%emt 0:06:59]} 17. Qe2 {[%emt 0:08:33]} Be7 {[%emt 0:03:42]} 18. Bxe4 {[%emt 0:02:03]} dxe4 {[%emt 0:00:17]} 19. d5 {[%emt 0:00:36]} Bb7 {[%emt 0:00:24]} (19... Bxd5 $2 20. Rfd1 $18) 20. Rfd1 {[%emt 0:00:05][%cal Oe2b5]} Rac8 {[%emt 0:03:32]} 21. Qb5 {[%emt 0:04:32]} Red8 {[%emt 0:07:22]} 22. Qxd7 {[%emt 0:07:54]} Rxd7 {[%emt 0:00:13]} 23. Nb5 {[%emt 0:00:13]} (23. Nxe4 $11 {remains equal.} Rxc1 (23... Rxd5 $2 24. Rxc8+ Bxc8 25. Rxd5 $18) 24. Rxc1) 23... Rxc1 $17 {[%emt 0:00:53]} (23... Rxd5 $2 24. Rxc8+ (24. Nxa7 Rxc1 25. Rxc1 Bc5 $17) 24... Bxc8 25. Rxd5 $18) 24. Rxc1 {[%emt 0:01:26]} Ba6 {[%emt 0:05:38]} (24... Rxd5 $6 25. Rc7 Rxb5 26. Rxe7 $11) (24... Bxd5 $17 {[%cal Of7f5]} 25. Rc8+ Bf8) 25. Nc3 {[%emt 0:09:08]} (25. Nd4 $15) 25... Bd3 {[%emt 0:00:10]} 26. Bd4 {[%emt 0:00:19]} f5 {[%emt 0:07:46]} 27. Kf2 {[%emt 0:00:29]} Kf7 {[%emt 0:03:51]} 28. Ke3 {[%emt 0:00:07][%cal Og2g4]} b5 {[%emt 0:01:09]} (28... g5 $17 29. g3 Rd8) 29. g4 {[%emt 0:05:28]} b4 {[%emt 0:19:58]} (29... fxg4 30. Nxe4 Bc4 31. d6 Bxd6 32. Nxd6+ Rxd6 33. b3 $11) 30. Nd1 {[%emt 0:07:49]} (30. Ne2 $1 $15) 30... g6 {[%emt 0:00:41]} (30... fxg4 31. Nf2 $17) (30... Rxd5 31. gxf5 Rxf5 32. Nf2 $15) (30... g5 $1 $19 31. Be5 gxf4+ (31... Rxd5 $2 32. Rc7 $19) 32. Kxf4 h6 (32... Rxd5 33. Rc7 $11)) 31. Nf2 $15 {[%emt 0:00:08]} Bb5 {[%emt 0:01:19]} (31... Rxd5 32. gxf5 gxf5 (32... Rxf5 33. Rc7 $15) 33. Nxd3 exd3 34. Kxd3 $14) 32. gxf5 {[%emt 0:02:46]} (32. Rc8 $1 $11) 32... gxf5 $17 {[%emt 0:00:05][%cal Oa7a6]} 33. Rg1 {[%emt 0:00:03]} ({White should play} 33. Rc8 $1 $15) 33... Bf8 {[%emt 0:01:18][%cal Oa7a6]} ({Resist} 33... Rxd5 34. Rg7+ Ke6 35. Rxh7 $15) 34. Rg5 {[%emt 0:03:37]} (34. Rc1 $142) 34... Rxd5 {[%emt 0:00:15]} 35. Nxe4 {[%emt 0:00:07]} h6 {[%emt 0:02:23]} 36. Rh5 {[%emt 0:00:07]} (36. Nf6 $17) 36... Kg6 $19 {[%emt 0:02:14]} 37. Ng3 {[%emt 0:00:03]} a5 {[%emt 0:01:31]} 38. b3 {[%emt 0:00:55]} Ba6 {[%emt 0:05:17][%cal Oa6f1]} 39. Rh3 {[%emt 0:02:12]} Bc5 {[%emt 0:00:42]} 40. Bxc5 {[%emt 0:00:00]} Rxc5 {[%emt 0:00:00][%mdl 4096] Endgame. KRB-KRN} 41. Kd4 $2 {[%emt 0:17:27]} (41. Ne2 Bxe2 42. Kxe2) 41... Rc3 {[%emt 0:16:19]} 42. Rh4 {[%emt 0:00:14]} Bd3 {[%emt 0:01:40]} 43. Kd5 {[%emt 0:04:08]} Bb1 {[%emt 0:01:39]} 44. Ne2 {[%emt 0:00:08]} Be4+ {[%emt 0:13:43]} 45. Ke5 {[%emt 0:06:18] [#]} (45. Kd4 $142 Rc2 46. Ng3) 45... Bg2 $1 {[%emt 0:03:26] aiming for ...Re3+.} 46. Nd4 {[%emt 0:00:37]} (46. Ng3 Rc2) 46... h5 {[%emt 0:01:28] Strongly threatening ...Rd3.} 47. Ke6 {[%emt 0:01:59]} Be4 {[%emt 0:00:46]} (47... Rd3 $142 48. Nb5 (48. Nxf5 $2 {loses.} Bh3 $19) 48... Rd2) 48. Kd6 {[%emt 0:01:16] [#]} Bb1 $1 {[%emt 0:00:48]} 49. Nc6 {[%emt 0:00:29]} Bxa2 {[%emt 0:02:11]} 50. Nxa5 {[%emt 0:01:34] [#]} Bxb3 $2 {[%emt 0:00:19]} (50... Kh6 $1 $19 {[%cal Oa2b1] And now ...Bb1! would win.} 51. Kd5 Bb1 (51... Bxb3+ 52. Nxb3 Rxb3 53. Kc4 $15)) 51. Nxb3 $15 {[%emt 0:01:01]} Rxb3 $19 {[%emt 0:00:04] KR-KR} 52. Kc5 $1 {[%emt 0:00:03]} Rb2 {[%emt 0:07:28] Threatens to win with ...b3.} 53. h3 {[%emt 0:00:21]} Rb1 {[%emt 0:00:58]} 54. Kc4 {[%emt 0:00:06]} Kh6 {[%emt 0:00:13]} 55. Kb5 {[%emt 0:00:26]} Rb3 {[%emt 0:00:47]} 56. Kc4 {[%emt 0:00:05]} Rb2 {[%emt 0:00:02]} 57. Kb5 {[%emt 0:00:04]} Kg6 {[%emt 0:00:55]} (57... b3 $15 58. Kb4 Rb1) 58. Kc4 {[%emt 0:00:04]} ({Only move:} 58. Kc5 $1 $11) 58... Rb1 {[%emt 0:00:02]} 59. Kb5 {[%emt 0:00:05]} b3 {[%emt 0:00:30]} 60. Kc4 {[%emt 0:00:25]} Rb2 {[%emt 0:00:52]} 61. Kc3 {[%emt 0:00:24]} Rb1 {[%emt 0:00:03]} 62. Kc4 $1 {[%emt 0:00:03]} b2 {[%emt 0:00:32] ( -> ...Rc1+)} (62... Re1 {simplifies} 63. Kxb3 Re8 64. Kc2 Re7) 63. Kc3 {[%emt 0:00:09]} Kf6 {[%emt 0:00:43]} ({Black should try} 63... Kh6 $15) 64. Rxh5 $11 {[%emt 0:02:49]} Rf1 {[%emt 0:00:04]} 65. Kxb2 {[%emt 0:00:02]} Rxf4 {[%emt 0:00:03]} 66. Kc3 {[%emt 0:00:51] Prevents Rc4+.} Ke5 {[%emt 0:00:06]} (66... Kg6 $5 67. Rh8 $8 Rf3+ 68. Kd2 Kg5 $11) 67. Kd3 {[%emt 0:00:09]} Re4 {[%emt 0:00:16]} 68. Rh8 {[%emt 0:00:18]} Kf4 {[%emt 0:00:09]} 69. h4 {[%emt 0:02:47]} Re3+ {[%emt 0:00:26]} 70. Kd4 {[%emt 0:00:40]} Re4+ {[%emt 0:00:29]} 71. Kd3 {[%emt 0:00:24]} Re6 {[%emt 0:00:49]} 72. h5 {[%emt 0:00:38]} Kg5 {[%emt 0:00:06]} 73. h6 {[%emt 0:00:18]} Rxh6 {[%emt 0:04:47] Weighted Error Value: White=0.27 (precise) /Black=0.20 (precise) .  Loses game:     	White=1     	---        Missed win:     	---       	Black=1      Mistake:       	White=10    	Black=6      Inaccurate:     	White=5     	Black=2      OK:         	White=23    	Black=19     Best:        	White=9     	Black=6      Strong:       	White=2     	---} 1/2-1/2

[Event "Tsaghkadzor Open 2024"]
[Site "Tsaghkadzor"]
[Date "2024.10.04"]
[Round "7.8"]
[White "Gasparyan, Erik R."]
[Black "Goganov, Aleksey"]
[Result "*"]
[ECO "E51"]
[WhiteElo "2350"]
[BlackElo "2463"]
[Annotator "TA"]
[PlyCount "36"]
[EventDate "2024.09.13"]
[EventType "swiss"]
[EventCountry "ARM"]
[SourceTitle "playchess.com"]
[Source "ChessBase"]
[SourceQuality "1"]
[TimeControl "40/5400+30:1800+30"]

{[%evp 13,22,14,34,-3,15,0,0,0,44,27,254]} 1. d4 {[%emt 0:00:04]} Nf6 {[%emt 0:00:10]} 2. c4 {[%emt 0:00:08]} e6 {[%emt 1:31:20]} 3. Nf3 {[%emt 0:00:27]} d5 {[%emt 0:00:21]} 4. Nc3 {[%emt 0:00:25]} Bb4 {[%emt 0:00:20]} 5. e3 {[%emt 0:00:34]} O-O {[%emt 0:00:16]} 6. Bd2 {[%emt 0:00:03]} b6 {[%emt 0:00:15]} 7. cxd5 {[%emt 0:00:04]} exd5 {[%emt 0:00:04]} 8. Rc1 {[%emt 0:00:06] E51: Nimzo-Indisch: Rubinstein: 4...0-0 5 Pf3 d5.} Re8 {[%emt 0:02:35]} 9. Bd3 {[%emt 0:03:35] 9.Ne5 verdient nadere bestudering.} Bf8 {[%emt 0:01:39] Onnauwkeurig} 10. Ne5 {[%emt 0:06:13] OK} Bb7 {[%emt 0:04:05] OK} 11. O-O {[%emt 0:00:17] OK} c5 {[%emt 0:00:04] Zwart werd weggespeeld na de opening.   Blunder waarde: Wit=0.12 (erg precies) /Zwart=0.05 (foutloos) . Beste (Gemakkelijk).  Onnauwkeurig:    	---       	Zwart=1      OK:         	Wit=2      	Zwart=1      Beste:        	---       	Zwart=1} {Predecessor:} 12. Bb5 $146 Re7 13. f4 a6 14. Bd3 Nc6 15. Ne2 Rc7 16. Be1 Ne4 17. Nxc6 Rxc6 18. Bxe4 dxe4 {1-0 Maghsoodloo,P (2716)-Sevian,S (2690) Aimchess Play In op rapid 2023 (7)} *